[Event "Weekend Groninger Combinatie 2019"]
[Site "Groningen"]
[Date "2019.05.30"]
[Round "1.11"]
[White "Van t Veld, Menno"]
[Black "De Boer, Bas"]
[Result "0-1"]
[ECO "B48"]
[WhiteElo "1901"]
[BlackElo "2095"]
[Annotator "NA"]
[PlyCount "52"]
[EventDate "2019.05.30"]
[EventType "swiss"]
[EventCountry "NED"]
[SourceTitle "playchess.com"]
[Source "ChessBase"]
[SourceQuality "1"]
[TimeControl "5400+30"]

1. e4 {[%emt 1:29:30]} c5 {[%emt 0:00:00]} 2. Nf3 {[%emt 0:00:30]} e6 {[%emt 0:00:30]} 3. d4 {[%emt 0:00:30]} cxd4 {[%emt 0:00:30]} 4. Nxd4 {[%emt 0:00:30]} Nc6 {[%emt 0:00:30]} 5. Nc3 {[%emt 0:00:30]} Qc7 {[%emt 0:00:30]} 6. Be3 {[%emt 0:00:30]} a6 {[%emt 0:00:30]} 7. Qd2 {[%emt 0:00:30]} Nf6 {[%emt 0:00:30]} 8. f3 {[%emt 0:00:30]} Be7 {[%emt 0:00:30] B48: Sicilian: Taimanov: 5 Nc3 Qc7 6 Be3 a6 without Be2} 9. O-O-O {[%emt 0:00:30]} b5 {[%emt 0:00:30]} 10. g4 {[%emt 0:00:30]} Nxd4 {[%emt 0:00:30]} 11. Bxd4 {[%emt 0:00:30]} Bb7 {[%emt 0:00:30]} 12. g5 {[%emt 0:00:30]} (12. Kb1 O-O 13. Rg1 Rac8 14. h4 Rfd8 15. Bh3 Ne8 16. g5 {½-½ (30) Dominguez Perez,L (2739)-Shankland,S (2731) Saint Louis 2019}) 12... Nh5 {[%emt 0:00:30]} 13. Ne2 {[%emt 0:00:30]} Rc8 {[%emt 0:00:30]} 14. Be3 {[%emt 0:00:30]} d5 {[%emt 0:00:30] [#]} 15. Bg2 $146 {[%emt 0:00:30]} ({Predecessor:} 15. e5 d4 16. Nxd4 {½-½ (42) Bauer,C (2622)-Lopez Martinez,J (2543) Linares 2013}) 15... O-O {[%emt 0:00:30]} 16. exd5 {[%emt 0:00:30]} Bxd5 {[%emt 0:00:30]} 17. Nf4 {[%emt 0:00:30]} Bb4 {[%emt 0:00:30]} 18. c3 {[%emt 0:00:30]} Nxf4 {[%emt 0:00:30]} 19. Bxf4 {[%emt 0:00:30]} Qa5 {[%emt 0:00:30]} 20. Be5 {[%emt 0:00:30]} Qxa2 {[%emt 0:00:30]} 21. Qd3 {[%emt 0:00:30]} Be7 {[%emt 0:00:30]} 22. h4 $19 {[%emt 0:00:30]} Bb3 {[%emt 0:00:30]} 23. Rde1 {[%emt 0:00:30]} b4 {[%emt 0:00:30]} 24. f4 {[%emt 0:00:30]} bxc3 {[%emt 0:00:30]} 25. Bxc3 {[%emt 0:00:30]} Rfd8 {[%emt 0:00:30]} 26. Qb1 {[%emt 0:00:30]} Rxc3+ {[%emt 0:00:30]} 0-1

[Event "Weekend Groninger Combinatie 2019"]
[Site "Groningen"]
[Date "2019.05.30"]
[Round "1.12"]
[White "Nicolai, Amir"]
[Black "Den Boer, Paul"]
[Result "1-0"]
[ECO "D02"]
[WhiteElo "2095"]
[BlackElo "1877"]
[Annotator "NA"]
[PlyCount "65"]
[EventDate "2019.05.30"]
[EventType "swiss"]
[EventCountry "NED"]
[SourceTitle "playchess.com"]
[Source "ChessBase"]
[SourceQuality "1"]
[TimeControl "5400+30"]

1. d4 {[%emt 1:30:30]} Nf6 {[%emt 0:00:00]} 2. Bf4 {[%emt 0:00:30]} d5 {[%emt 0:00:30]} 3. e3 {[%emt 0:00:30]} c6 {[%emt 0:00:30]} 4. Nd2 {[%emt 0:00:30]} Bg4 {[%emt 0:00:30]} 5. Ngf3 {[%emt 0:00:30]} e6 {[%emt 0:00:30]} 6. h3 {[%emt 0:00:30]} Bxf3 {[%emt 0:00:30]} 7. Qxf3 {[%emt 0:00:30]} Bd6 {[%emt 0:00:30]} 8. Bd3 {[%emt 0:00:30]} c5 {[%emt 0:00:30]} 9. c3 {[%emt 0:00:30]} Nc6 {[%emt 0:00:30]} 10. O-O {[%emt 0:00:30]} cxd4 {[%emt 0:00:30]} 11. exd4 {[%emt 0:00:30]} Bxf4 {[%emt 0:00:30]} 12. Qxf4 {[%emt 0:00:30]} O-O {[%emt 0:00:30]} 13. Rae1 {[%emt 0:00:30]} Qb8 {[%emt 0:00:30]} 14. Qe3 {[%emt 0:00:30]} b5 {[%emt 0:00:30]} 15. f4 {[%emt 0:00:30]} Ne7 {[%emt 0:00:30]} 16. g4 {[%emt 0:00:30]} Re8 {[%emt 0:00:30]} 17. Nf3 {[%emt 0:00:30]} b4 {[%emt 0:00:30]} 18. Ne5 {[%emt 0:00:30]} Qd6 {[%emt 0:00:30]} 19. f5 {[%emt 0:00:30]} exf5 {[%emt 0:00:30]} 20. Bxf5 {[%emt 0:00:30]} Nxf5 {[%emt 0:00:30]} 21. Rxf5 {[%emt 0:00:30]} bxc3 {[%emt 0:00:30]} 22. bxc3 {[%emt 0:00:30]} Rac8 {[%emt 0:00:30]} 23. Ref1 {[%emt 0:00:30]} h6 {[%emt 0:00:30]} 24. g5 {[%emt 0:00:30]} hxg5 {[%emt 0:00:30]} 25. Qxg5 {[%emt 0:00:30]} Re6 {[%emt 0:00:30]} 26. R5f3 {[%emt 0:00:30]} Ne4 {[%emt 0:00:30]} 27. Qh5 {[%emt 0:00:30]} g6 {[%emt 0:00:30]} 28. Qh6 {[%emt 0:00:30]} Rxe5 {[%emt 0:00:30]} 29. dxe5 {[%emt 0:00:30]} Qb6+ {[%emt 0:00:30]} 30. Kh1 {[%emt 0:00:30]} Rxc3 {[%emt 0:00:30]} 31. Rxf7 {[%emt 0:00:30]} Ng3+ {[%emt 0:00:30]} 32. Kg2 {[%emt 0:00:30]} Qb2+ {[%emt 0:00:30]} 33. R1f2 {[%emt 0:00:30]} 1-0

[Event "Weekend Groninger Combinatie 2019"]
[Site "Groningen"]
[Date "2019.05.31"]
[Round "2.10"]
[White "Wempe, Joost"]
[Black "Pellikaan, Govert"]
[Result "1-0"]
[ECO "D85"]
[WhiteElo "2261"]
[BlackElo "1980"]
[Annotator "RC"]
[PlyCount "51"]
[EventDate "2019.05.30"]
[EventType "swiss"]
[EventCountry "NED"]
[SourceTitle "playchess.com"]
[Source "ChessBase"]
[SourceQuality "1"]
[TimeControl "5400+30"]

1. d4 {[%emt 0:00:00]} Nf6 {[%emt 0:00:00]} 2. c4 {[%emt 0:00:00]} g6 {[%emt 0:00:00]} 3. Nc3 {[%emt 0:00:00]} d5 {[%emt 0:00:17]} 4. cxd5 {[%emt 0:00:00]} Nxd5 {[%emt 0:00:05]} 5. e4 {[%emt 0:00:00]} Nxc3 {[%emt 0:00:08]} 6. bxc3 {[%emt 0:00:05]} c5 {[%emt 0:00:22]} 7. Be3 {[%emt 0:02:56]} Bg7 {[%emt 0:00:17]} 8. Qd2 {[%emt 0:03:49]} O-O {[%emt 0:02:48]} 9. Rc1 {[%emt 0:09:55]} Qa5 {[%emt 0:02:29]} 10. d5 {[%emt 0:04:34]} Rd8 {[%emt 0:00:37]} 11. Bg5 {[%emt 0:15:20]} h6 {[%emt 0:00:45]} 12. Bxh6 {[%emt 0:09:37]} e6 {[%emt 0:17:36]} 13. Bxg7 {[%emt 0:12:00]} Kxg7 {[%emt 0:00:02]} 14. d6 {[%emt 0:02:32]} Nc6 {[%emt 0:10:24]} 15. h4 {[%emt 0:01:07]} b6 {[%emt 0:10:47]} 16. h5 {[%emt 0:03:37]} Rh8 {[%emt 0:02:25]} 17. h6+ {[%emt 0:05:14]} Kh7 {[%emt 0:01:32]} 18. Qf4 {[%emt 0:01:10]} f5 {[%emt 0:07:09]} 19. e5 {[%emt 0:02:20]} c4 {[%emt 0:07:19]} 20. Nf3 {[%emt 0:00:28]} Rf8 {[%emt 0:00:42]} 21. Bxc4 {[%emt 0:02:24]} Kh8 {[%emt 0:00:18]} 22. Qg3 {[%emt 0:05:31]} Rb8 {[%emt 0:11:01]} 23. O-O {[%emt 0:01:11]} Kh7 {[%emt 0:01:43]} 24. Ng5+ {[%emt 0:02:46]} Kxh6 {[%emt 0:01:20]} 25. Qh4+ {[%emt 0:00:09]} Kg7 {[%emt 0:00:38]} 26. Qh7# {[%emt 0:16:15]} 1-0

[Event "Weekend Groninger Combinatie 2019"]
[Site "Groningen"]
[Date "2019.05.31"]
[Round "2.11"]
[White "Schulz, Daniel"]
[Black "Torensma, Jan"]
[Result "1-0"]
[ECO "A87"]
[WhiteElo "2092"]
[BlackElo "1809"]
[Annotator "NA RC"]
[PlyCount "67"]
[EventDate "2019.05.30"]
[EventType "swiss"]
[EventCountry "NED"]
[SourceTitle "playchess.com"]
[Source "ChessBase"]
[SourceQuality "1"]
[TimeControl "5400+30"]

1. d4 {[%emt 0:33:31]} f5 2. g3 {[%emt 0:00:30]} Nf6 3. Bg2 {[%emt 0:00:30]} d6 4. Nf3 {[%emt 0:00:30]} g6 5. O-O {[%emt 0:00:30]} Bg7 6. b3 {[%emt 0:00:30]} O-O 7. Bb2 {[%emt 0:00:30]} c6 8. c4 {[%emt 0:00:30]} Na6 9. Nbd2 {[%emt 0:00:30]} Nh5 {A87: Dutch Defence: Leningrad System: 5 Nf3} (9... e5 10. dxe5 Nd7 11. Ba3 c5 12. e6 Nb6 13. Qc2 Bxe6 14. Rad1 Qe7 15. Bb2 Nb4 16. Qb1 Rad8 17. Bxg7 Qxg7 {1-0 (59) Korobov,A (2695)-Anton Guijarro,D (2679) Poikovsky 2017}) 10. Qc1 {[%emt 0:00:30]} Qc7 $146 ({Predecessor:} 10... h6 11. d5 Qe8 12. dxc6 bxc6 13. e4 e5 14. Ba3 Rf6 15. Qc3 g5 16. h3 g4 17. Nh2 gxh3 18. Bxh3 {1-0 (34) Renk,C-Beyer,T Recklinghausen 1999}) 11. d5 {[%emt 0:00:30]} e5 12. dxe6 {[%emt 0:00:30]} Bxe6 13. Nd4 {[%emt 0:00:30]} Bf7 14. e3 {[%emt 0:00:30]} Nc5 15. Qc2 {[%emt 0:00:30]} Nf6 16. Rad1 {[%emt 0:00:30]} Rad8 17. Rfe1 {[%emt 0:00:30]} Rfe8 18. Qb1 {[%emt 0:00:30]} Nfe4 19. N2f3 {[%emt 0:00:30]} d5 20. cxd5 {[%emt 0:00:30]} Rxd5 $11 21. Qa1 {[%emt 0:00:30]} Ne6 22. Nxe6 {[%emt 0:00:30]} Bxe6 23. Nd4 {[%emt 0:00:30]} Qd7 24. Bf1 {[%emt 0:00:30]} Bf7 25. Bc4 {[%emt 0:00:30]} Rd6 26. Be2 {[%emt 0:00:30]} Qc8 27. Nf3 {[%emt 0:00:30]} Bxb2 28. Qxb2 {[%emt 0:00:30]} Bd5 29. Ne5 {[%emt 0:00:30]} f4 30. Rxd5 {[%emt 0:00:30]} Rxd5 31. Bc4 {[%emt 0:00:30]} Qf5 32. exf4 {[%emt 0:00:30]} g5 33. Qd4 {[%emt 0:00:30]} Red8 34. Rxe4 {[%emt 0:00:30]} 1-0

[Event "Weekend Groninger Combinatie 2019"]
[Site "Groningen"]
[Date "2019.05.31"]
[Round "2.12"]
[White "Enserink, Henk"]
[Black "Rupert, Casper"]
[Result "1-0"]
[ECO "C01"]
[WhiteElo "1794"]
[BlackElo "2022"]
[Annotator "NA RC"]
[PlyCount "55"]
[EventDate "2019.05.30"]
[EventType "swiss"]
[EventCountry "NED"]
[SourceTitle "playchess.com"]
[Source "ChessBase"]
[SourceQuality "1"]
[TimeControl "5400+30"]

1. e4 {[%emt 1:30:30]} e6 {[%emt 0:00:00]} 2. Nf3 {[%emt 0:00:30]} d5 {[%emt 0:00:30]} 3. exd5 {[%emt 0:00:30]} exd5 {[%emt 0:00:30]} 4. d4 {[%emt 0:00:30]} Bg4 {[%emt 0:00:30]} 5. c4 {[%emt 0:00:30]} Bb4+ {[%emt 0:00:30]} 6. Nc3 {[%emt 0:00:30]} Qe7+ {[%emt 0:00:30]} 7. Be3 {[%emt 0:00:30]} Nf6 {[%emt 0:00:30]} 8. a3 {[%emt 0:00:30]} Bxc3+ {[%emt 0:00:30]} 9. bxc3 {[%emt 0:00:30]} Nbd7 {[%emt 0:00:30]} 10. h3 {[%emt 0:00:30]} Bh5 {[%emt 0:00:30]} 11. Be2 {[%emt 0:00:30]} O-O {[%emt 0:00:30]} 12. O-O {[%emt 0:00:30]} dxc4 {[%emt 0:00:30]} 13. Bxc4 {[%emt 0:00:30]} Nb6 {[%emt 0:00:30]} 14. Bb3 {[%emt 0:00:30]} Nbd5 {[%emt 0:00:30]} 15. Bd2 {[%emt 0:00:30]} Qe4 {[%emt 0:00:30]} 16. c4 {[%emt 0:00:30]} Nb6 {[%emt 0:00:30]} 17. Re1 {[%emt 0:00:30]} Bxf3 {[%emt 0:00:30]} 18. Qxf3 {[%emt 0:00:30]} Qxd4 {[%emt 0:00:30]} 19. Bc3 {[%emt 0:00:30]} Qh4 {[%emt 0:00:30]} 20. Qxb7 {[%emt 0:00:30]} c5 {[%emt 0:00:30]} 21. Re3 {[%emt 0:00:30]} Nbd5 {[%emt 0:00:30]} 22. cxd5 {[%emt 0:00:30]} Rab8 {[%emt 0:00:30]} 23. Qe7 {[%emt 0:00:30]} Rfe8 {[%emt 0:00:30]} 24. Bxf6 {[%emt 0:00:30]} gxf6 {[%emt 0:00:30]} 25. Qxe8+ {[%emt 0:00:30]} Rxe8 {[%emt 0:00:30]} 26. Rxe8+ {[%emt 0:00:30]} Kg7 {[%emt 0:00:30]} 27. d6 {[%emt 0:00:30]} c4 {[%emt 0:00:30]} 28. d7 {[%emt 0:00:30]} 1-0

[Event "Weekend Groninger Combinatie 2019"]
[Site "Groningen"]
[Date "2019.05.31"]
[Round "3.1"]
[White "De Boer, Bas"]
[Black "Maris, Ivo"]
[Result "0-1"]
[ECO "E68"]
[WhiteElo "2095"]
[BlackElo "2386"]
[Annotator "ChessBase"]
[PlyCount "74"]
[EventDate "2019.05.30"]
[EventType "swiss"]
[EventCountry "NED"]
[SourceTitle "playchess.com"]
[Source "ChessBase"]
[SourceQuality "1"]
[TimeControl "5400+30"]

1. Nf3 {[%emt 0:00:00]} g6 {[%emt 0:03:18]} 2. c4 {[%emt 0:00:00]} Bg7 {[%emt 0:00:06]} 3. Nc3 {[%emt 0:00:00]} d6 {[%emt 0:01:24]} 4. g3 {[%emt 0:01:11]} Nf6 {[%emt 0:01:31]} 5. d4 {[%emt 0:00:13]} O-O {[%emt 0:00:07]} 6. Bg2 {[%emt 0:00:03]} Nbd7 {[%emt 0:00:06]} 7. O-O {[%emt 0:00:20]} e5 {[%emt 0:00:03]} 8. e4 {[%emt 0:00:52]} h6 {[%emt 0:00:17]} 9. h3 {[%emt 0:02:17]} Nh7 {[%emt 0:00:19]} 10. Be3 {[%emt 0:03:35]} Ng5 {[%emt 0:00:18]} 11. Nxg5 {[%emt 0:03:02]} hxg5 {[%emt 0:02:08]} 12. Qd2 {[%emt 0:00:24]} exd4 {[%emt 0:06:20]} 13. Bxd4 {[%emt 0:00:17]} Ne5 {[%emt 0:01:50]} 14. b3 {[%emt 0:04:33]} c5 {[%emt 0:00:46]} 15. Bxe5 {[%emt 0:09:06]} Bxe5 {[%emt 0:05:30]} 16. Rad1 {[%emt 0:00:34]} g4 {[%emt 0:04:21]} 17. hxg4 {[%emt 0:04:19]} Bxg4 {[%emt 0:00:10]} 18. f3 {[%emt 0:03:16]} Bd4+ {[%emt 0:00:52]} 19. Kh2 {[%emt 0:00:45]} Qf6 {[%emt 0:01:17]} 20. Qh6 {[%emt 0:04:44]} Bxc3 {[%emt 0:02:08]} 21. fxg4 {[%emt 0:00:20]} Qg7 {[%emt 0:00:29]} 22. Qxg7+ {[%emt 0:02:15]} Kxg7 {[%emt 0:01:01]} 23. Rxd6 {[%emt 0:00:16]} Rh8+ {[%emt 0:00:24]} 24. Bh3 {[%emt 0:00:06]} Rad8 {[%emt 0:01:31]} 25. Rfd1 {[%emt 0:02:10]} Rde8 {[%emt 0:04:00]} 26. Kg2 {[%emt 0:00:40]} Rxe4 {[%emt 0:00:19]} 27. Kf3 {[%emt 0:01:26]} Re5 {[%emt 0:02:33]} 28. Bf1 {[%emt 0:01:11]} Rh2 {[%emt 0:00:46]} 29. Bg2 {[%emt 0:00:21]} Bd4 {[%emt 0:01:14]} 30. Rd2 {[%emt 0:05:03]} Re3+ {[%emt 0:02:22]} 31. Kf4 {[%emt 0:00:09]} Re1 {[%emt 0:00:05]} 32. Kf3 {[%emt 0:00:40]} Kh6 {[%emt 0:02:19]} 33. Rd8 {[%emt 0:03:42]} Kg5 {[%emt 0:02:13]} 34. Rd5+ {[%emt 0:01:15]} f5 {[%emt 0:00:07]} 35. gxf5 {[%emt 0:00:13]} gxf5 {[%emt 0:00:35]} 36. Rd8 {[%emt 0:03:52]} Re3+ {[%emt 0:00:31]} 37. Kf2 {[%emt 0:00:18]} Rd3+ {[%emt 0:00:18]} 0-1

[Event "Weekend Groninger Combinatie 2019"]
[Site "Groningen"]
[Date "2019.05.31"]
[Round "3.2"]
[White "Pel, Bonno"]
[Black "Elgersma, Simon"]
[Result "0-1"]
[ECO "B07"]
[WhiteElo "2260"]
[BlackElo "2088"]
[Annotator "ChessBase"]
[PlyCount "58"]
[EventDate "2019.05.30"]
[EventType "swiss"]
[EventCountry "NED"]
[SourceTitle "playchess.com"]
[Source "ChessBase"]
[SourceQuality "1"]
[TimeControl "5400+30"]

1. g3 {[%emt 0:00:49]} g6 {[%emt 0:00:35]} 2. Bg2 {[%emt 0:00:12]} Bg7 {[%emt 0:00:34]} 3. e4 {[%emt 0:00:25]} d6 {[%emt 0:00:26]} 4. d4 {[%emt 0:00:24]} Nf6 {[%emt 0:00:29]} 5. Nc3 {[%emt 0:00:35]} O-O {[%emt 0:00:08]} 6. Nge2 {[%emt 0:00:29]} Nbd7 {[%emt 0:00:28]} 7. O-O {[%emt 0:00:36]} e5 {[%emt 0:00:20]} 8. h3 {[%emt 0:01:42]} c6 {[%emt 0:02:08]} 9. a4 {[%emt 0:01:32]} a5 {[%emt 0:05:13]} 10. b3 {[%emt 0:01:14]} Re8 {[%emt 0:08:14]} 11. Ba3 {[%emt 0:08:36]} exd4 {[%emt 0:05:56]} 12. Nxd4 {[%emt 0:01:49]} Nc5 {[%emt 0:00:17]} 13. Re1 {[%emt 0:02:04]} Qb6 {[%emt 0:09:32]} 14. Bb2 {[%emt 0:04:48]} Nh5 {[%emt 0:11:36]} 15. Kh2 {[%emt 0:13:31]} Nxb3 {[%emt 0:04:47]} 16. Nxb3 {[%emt 0:15:26]} Qxf2 {[%emt 0:00:10]} 17. Qd3 {[%emt 0:02:19]} Be5 {[%emt 0:15:53]} 18. Re3 {[%emt 0:01:19]} Bxh3 {[%emt 0:02:18]} 19. Rg1 {[%emt 0:15:59]} Bxg2 {[%emt 0:17:31]} 20. Rxg2 {[%emt 0:00:46]} Qf6 {[%emt 0:00:11]} 21. Nd2 {[%emt 0:03:49]} Qg5 {[%emt 0:06:49]} 22. Nc4 {[%emt 0:02:38]} Bg7 {[%emt 0:02:32]} 23. Rf3 {[%emt 0:02:32]} Rad8 {[%emt 0:01:29]} 24. Rf1 {[%emt 0:02:06]} Nf6 {[%emt 0:00:44]} 25. Kg1 {[%emt 0:09:03]} Ng4 {[%emt 0:00:26]} 26. Rf4 {[%emt 0:01:18]} Qc5+ {[%emt 0:00:45]} 27. Rff2 {[%emt 0:03:06]} d5 {[%emt 0:01:18]} 28. Nd2 {[%emt 0:02:19]} dxe4 {[%emt 0:02:08]} 29. Ndxe4 {[%emt 0:00:22]} Rxd3 {[%emt 0:00:07]} 0-1

[Event "Weekend Groninger Combinatie 2019"]
[Site "Groningen"]
[Date "2019.05.31"]
[Round "3.3"]
[White "Hoeksema, Hendrik Pieter"]
[Black "Keuning, Selwin"]
[Result "1-0"]
[ECO "A37"]
[WhiteElo "2349"]
[BlackElo "2070"]
[Annotator "ChessBase"]
[PlyCount "101"]
[EventDate "2019.05.30"]
[EventType "swiss"]
[EventCountry "NED"]
[SourceTitle "playchess.com"]
[Source "ChessBase"]
[SourceQuality "1"]
[TimeControl "5400+30"]

1. c4 {[%emt 0:00:00]} c5 {[%emt 0:00:00]} 2. Nf3 {[%emt 0:00:44]} Nc6 {[%emt 0:00:00]} 3. b3 {[%emt 0:02:21]} e5 {[%emt 0:02:15]} 4. Nc3 {[%emt 0:01:01]} g6 {[%emt 0:00:36]} 5. g3 {[%emt 0:11:50]} Bg7 {[%emt 0:00:19]} 6. Bg2 {[%emt 0:00:06]} Nge7 {[%emt 0:03:36]} 7. O-O {[%emt 0:01:11]} O-O {[%emt 0:00:26]} 8. Bb2 {[%emt 0:12:54]} d6 {[%emt 0:02:39]} 9. e3 {[%emt 0:00:54]} h6 {[%emt 0:07:35]} 10. Ne1 {[%emt 0:06:56]} Be6 {[%emt 0:05:42]} 11. Nd5 {[%emt 0:00:19]} Rb8 {[%emt 0:03:46]} 12. Nc2 {[%emt 0:03:23]} b5 {[%emt 0:08:21]} 13. d3 {[%emt 0:01:17]} Qd7 {[%emt 0:02:35]} 14. f4 {[%emt 0:02:01]} f6 {[%emt 0:07:18]} 15. Qd2 {[%emt 0:02:38]} Kh7 {[%emt 0:06:00]} 16. Rf2 {[%emt 0:03:21]} Bh3 {[%emt 0:11:51]} 17. Raf1 {[%emt 0:03:59]} Bxg2 {[%emt 0:02:26]} 18. Kxg2 {[%emt 0:00:17]} f5 {[%emt 0:05:37]} 19. Ne1 {[%emt 0:03:12]} b4 {[%emt 0:13:36]} 20. Qc2 {[%emt 0:09:09]} Qe6 {[%emt 0:02:10]} 21. e4 {[%emt 0:09:02]} exf4 {[%emt 0:10:26]} 22. Nxf4 {[%emt 0:02:16]} Qf7 {[%emt 0:00:10]} 23. Nf3 {[%emt 0:00:23]} Ne5 {[%emt 0:01:07]} 24. Nxe5 {[%emt 0:01:26]} Bxe5 {[%emt 0:01:04]} 25. Bxe5 {[%emt 0:00:58]} dxe5 {[%emt 0:00:01]} 26. Nd5 {[%emt 0:00:09]} Nc6 {[%emt 0:01:06]} 27. exf5 {[%emt 0:04:06]} gxf5 {[%emt 0:00:05]} 28. Rxf5 {[%emt 0:01:47]} Qxf5 {[%emt 0:00:57]} 29. Rxf5 {[%emt 0:00:05]} Rxf5 {[%emt 0:00:02]} 30. Qe2 {[%emt 0:00:13]} Rbf8 {[%emt 0:01:03]} 31. Qe4 {[%emt 0:00:10]} Kg7 {[%emt 0:00:15]} 32. Ne3 {[%emt 0:00:23]} R5f6 {[%emt 0:01:07]} 33. Ng4 {[%emt 0:02:48]} Re6 {[%emt 0:00:17]} 34. Qd5 {[%emt 0:00:19]} Rfe8 {[%emt 0:01:31]} 35. Qxc5 {[%emt 0:00:16]} a5 {[%emt 0:00:15]} 36. Qd5 {[%emt 0:01:21]} R8e7 {[%emt 0:01:02]} 37. Nf2 {[%emt 0:01:05]} Kf8 {[%emt 0:00:37]} 38. Ne4 {[%emt 0:00:14]} Nd4 {[%emt 0:00:21]} 39. Qxa5 {[%emt 0:00:20]} Nc2 {[%emt 0:00:12]} 40. Qc5 {[%emt 0:03:38]} Kg7 {[%emt 0:00:22]} 41. Nd6 {[%emt 0:01:13]} Kg6 {[%emt 0:00:52]} 42. Qc6 {[%emt 0:01:16]} Rf6 {[%emt 0:00:48]} 43. Qe4+ {[%emt 0:01:46]} Kg7 {[%emt 0:00:03]} 44. c5 {[%emt 0:00:09]} Nd4 {[%emt 0:00:18]} 45. h4 {[%emt 0:01:36]} Kg8 {[%emt 0:00:56]} 46. Qa8+ {[%emt 0:00:34]} Kh7 {[%emt 0:00:16]} 47. Ne4 {[%emt 0:01:02]} Rg6 {[%emt 0:00:26]} 48. Qf8 {[%emt 0:00:28]} Rge6 {[%emt 0:00:52]} 49. Nf6+ {[%emt 0:01:31]} Kg6 {[%emt 0:00:05]} 50. Ne4 {[%emt 0:02:27]} Re8 {[%emt 0:00:15]} 51. h5+ {[%emt 0:00:33]} 1-0

[Event "Weekend Groninger Combinatie 2019"]
[Site "Groningen"]
[Date "2019.05.31"]
[Round "3.5"]
[White "Knol, Geon"]
[Black "Wempe, Joost"]
[Result "0-1"]
[ECO "C01"]
[WhiteElo "2082"]
[BlackElo "2261"]
[Annotator "ChessBase"]
[PlyCount "80"]
[EventDate "2019.05.30"]
[EventType "swiss"]
[EventCountry "NED"]
[SourceTitle "playchess.com"]
[Source "ChessBase"]
[SourceQuality "1"]
[TimeControl "5400+30"]

1. e4 {[%emt 0:08:03]} e6 {[%emt 0:00:14]} 2. d4 {[%emt 0:00:24]} d5 {[%emt 0:00:09]} 3. Bd3 {[%emt 0:00:10]} dxe4 {[%emt 0:00:32]} 4. Bxe4 {[%emt 0:00:08]} Nf6 {[%emt 0:00:06]} 5. Bf3 {[%emt 0:00:03]} c5 {[%emt 0:00:07]} 6. Ne2 {[%emt 0:01:52]} Nc6 {[%emt 0:00:14]} 7. c3 {[%emt 0:01:44]} e5 {[%emt 0:00:16]} 8. Bxc6+ {[%emt 0:01:12]} bxc6 {[%emt 0:00:06]} 9. O-O {[%emt 0:00:02]} Bd6 {[%emt 0:01:45]} 10. dxe5 {[%emt 0:01:13]} Bxe5 {[%emt 0:00:07]} 11. Qxd8+ {[%emt 0:00:10]} Kxd8 {[%emt 0:00:06]} 12. Bf4 {[%emt 0:05:38]} Re8 {[%emt 0:00:44]} 13. Rd1+ {[%emt 0:02:56]} Kc7 {[%emt 0:00:29]} 14. Nd2 {[%emt 0:02:23]} Bg4 {[%emt 0:15:43]} 15. Nf3 {[%emt 0:04:15]} Bxf3 {[%emt 0:12:29]} 16. gxf3 {[%emt 0:00:06]} Nd5 {[%emt 0:00:23]} 17. Bg3 {[%emt 0:08:06]} f5 {[%emt 0:06:44]} 18. Bxe5+ {[%emt 0:05:25]} Rxe5 {[%emt 0:00:09]} 19. Nc1 {[%emt 0:01:40]} c4 {[%emt 0:09:44]} 20. h4 {[%emt 0:14:05]} Rb8 {[%emt 0:04:41]} 21. Rd2 {[%emt 0:02:57]} Rbe8 {[%emt 0:11:25]} 22. b3 {[%emt 0:05:33]} Re1+ {[%emt 0:00:35]} 23. Kh2 {[%emt 0:00:26]} cxb3 {[%emt 0:02:13]} 24. axb3 {[%emt 0:11:15]} Nxc3 {[%emt 0:01:25]} 25. Rxa7+ {[%emt 0:05:38]} Kb6 {[%emt 0:00:04]} 26. Nd3 {[%emt 0:01:42]} Kxa7 {[%emt 0:01:15]} 27. Nxe1 {[%emt 0:00:54]} Rxe1 {[%emt 0:00:15]} 28. Rc2 {[%emt 0:03:36]} Nd5 {[%emt 0:02:23]} 29. Rxc6 {[%emt 0:00:05]} Kb7 {[%emt 0:01:19]} 30. Rc5 {[%emt 0:02:02]} Rd1 {[%emt 0:00:14]} 31. f4 {[%emt 0:05:18]} Rd3 {[%emt 0:01:23]} 32. b4 {[%emt 0:02:03]} g6 {[%emt 0:03:23]} 33. Rc4 {[%emt 0:02:39]} Rc3 {[%emt 0:01:21]} 34. Rd4 {[%emt 0:01:40]} Kc6 {[%emt 0:00:08]} 35. h5 {[%emt 0:00:59]} Rb3 {[%emt 0:00:40]} 36. Rc4+ {[%emt 0:00:51]} Kd7 {[%emt 0:01:15]} 37. Rd4 {[%emt 0:00:45]} Kd6 {[%emt 0:00:30]} 38. h6 {[%emt 0:00:29]} Rxb4 {[%emt 0:00:16]} 39. Rd2 {[%emt 0:00:30]} Rxf4 {[%emt 0:00:08]} 40. Kg3 {[%emt 0:00:07]} Rg4+ {[%emt 0:00:14]} 0-1